bitfinex/quotes_SOLUSD_20251018
["timestamp","ask_amount","ask_price","bid_price","bid_amount"]
[1760755105482,1.41929318,184.64,184.63,0.2]
[1760755108093,0.67688308,184.67,184.63,0.2]
[1760755108284,1.41929318,184.64,184.63,0.2]
[1760755109772,24.97628624,184.64,184.63,0.2]
[1760755111587,24.97628624,184.64,184.58,0.2]
[1760755111790,1.41929318,184.59,184.58,0.2]
[1760755112278,1.41929318,184.59,184.58,0.89]
[1760755112803,1.41929318,184.59,184.58,0.2]
[1760755113113,1.41929318,184.59,184.58,0.89]
[1760755114203,1.41929318,184.59,184.58,0.2]
[1760755115402,2.22352618,184.59,184.58,0.2]
[1760755115697,2.22352618,184.59,184.58,0.89]
[1760755118186,2.22352618,184.59,184.58,0.2]
[1760755118415,0.6770664,184.62,184.58,0.86]
[1760755118588,2.22352618,184.59,184.58,0.2]
[1760755119289,2.22352618,184.59,184.58,0.86]
[1760755123004,2.22352618,184.6,184.58,6.45185084]
[1760755123217,2.22352618,184.6,184.59,0.66]
[1760755123591,2.22352618,184.61,184.59,0.66]
[1760755123993,2.22352618,184.62,184.59,6.07726439]
[1760755124296,2.22352618,184.63,184.6,0.83399904]
[1760755124605,2.22352618,184.64,184.61,0.66]
[1760755125605,2.22352618,184.64,184.62,5.41653125]
[1760755125810,2.22352618,184.64,184.63,0.66]
[1760755126913,2.22352618,184.64,184.63,6.07623788]
[1760755127117,0.67684643,184.68,184.63,6.07623788]
[1760755127295,0.28432314,184.73,184.64,0.83364173]
[1760755127296,0.67666323,184.73,184.64,0.83364173]
[1760755127494,2.22352618,184.69,184.65,0.66]
[1760755127802,2.22352618,184.69,184.66,0.17352706]
[1760755128006,2.22352618,184.69,184.67,0.66]
[1760755128684,2.22352618,184.7,184.67,0.66]
[1760755129085,2.22352618,184.7,184.68,5.41477149]
[1760755129286,2.22352618,184.7,184.69,0.66]
[1760755130130,2.22352618,184.71,184.69,6.07441997]
[1760755130411,2.22352618,184.72,184.7,0.66]
[1760755130581,2.22352618,184.72,184.71,0.66]
[1760755132234,2.22352618,184.73,184.71,0.66]
[1760755132388,2.22352618,184.73,184.72,0.66]
[1760755133215,2.22352618,184.73,184.69,5.41447831]
[1760755133399,2.22352618,184.72,184.69,6.07447831]
[1760755133801,2.22352618,184.72,184.7,0.66]
[1760755134008,2.22352618,184.72,184.71,0.66]
[1760755136114,2.22352618,184.72,184.7,5.41394427]
[1760755136290,2.22352618,184.71,184.7,5.41394427]
[1760755136490,2.22352618,184.71,184.68,50.8]
[1760755136690,2.22352618,184.69,184.68,50.8]
[1760755140628,2.22352618,184.69,184.64,0.66]
[1760755140828,2.22352618,184.65,184.62,5.41653125]
[1760755141008,2.22352618,184.65,184.62,56.21653125]
[1760755141415,2.22352618,184.65,184.63,0.66]
[1760755141718,0.6767365,184.71,184.64,0.66]
[1760755141926,2.22352618,184.68,184.65,5.41565123]
[1760755142109,2.22352618,184.68,184.66,0.66]
[1760755142313,2.22352618,184.67,184.65,5.41565123]
[1760755142922,2.22352618,184.67,184.66,0.66]
[1760755143622,2.22352618,184.67,184.64,51.47]
[1760755143827,2.22352618,184.65,184.64,0.67]
[1760755145015,2.22352618,184.65,184.64,6.08594454]
[1760755145210,2.22352618,184.68,184.64,6.08594454]
[1760755145413,2.22352618,184.68,184.65,0.67]
[1760755146231,2.22352618,184.68,184.66,5.41535795]
[1760755146555,23.55666323,184.73,184.67,0.67]
[1760755146556,2.22352618,184.69,184.67,0.67]
[1760755146708,23.55666323,184.73,184.68,0.67]
[1760755147013,2.22352618,184.69,184.68,0.67]
[1760755147532,2.22352618,184.69,184.66,5.41535795]
[1760755147533,2.22352618,184.69,184.66,6.08535795]
[1760755147726,2.22352618,184.68,184.67,0.69]
[1760755148534,2.22352618,184.68,184.67,6.10506471]
[1760755148831,2.22352618,184.69,184.67,6.10506471]
[1760755149037,2.22352618,184.7,184.68,0.69]
[1760755149441,2.22352618,184.71,184.68,0.69]
[1760755150731,2.22352618,184.71,184.69,5.41447831]
[1760755150930,2.22352618,184.72,184.7,0.69]
[1760755152114,2.22352618,184.72,184.71,0.69]
[1760755152737,2.22352618,184.72,184.71,6.10389204]
[1760755153442,2.22352618,184.73,184.71,6.10389204]
[1760755153739,2.22352618,184.73,184.71,5.41389204]
[1760755153941,2.22352618,184.73,184.72,0.69]
[1760755154340,2.22352618,184.73,184.72,6.10359896]
[1760755158453,23.55644353,184.79,184.72,57.07671824]
[1760755158748,2.22352618,184.76,184.73,0.69]
[1760755158939,2.22352618,184.76,184.74,0.69]
[1760755159140,2.22352618,184.76,184.75,5.41271989]
[1760755159739,22.88,184.82,184.75,5.41271989]
[1760755159740,0.67618738,184.86,184.75,19.80741912]
[1760755159938,2.22352618,184.8,184.76,0.69]
[1760755160135,2.22352618,184.79,184.76,0.69]
[1760755161044,2.22352618,184.81,184.77,0.17275304]
[1760755161242,2.22352618,184.81,184.78,6.1018411]
[1760755161441,2.22352618,184.81,184.79,0.69]
[1760755162552,2.22352618,184.81,184.79,6.101469]
[1760755165347,2.22352618,184.81,184.78,5.4118411]
[1760755165528,2.22352618,184.81,184.79,0.69]
[1760755165930,2.22352618,184.82,184.8,0.69]
[1760755166145,2.22352618,184.82,184.81,0.69]
[1760755166942,2.22352618,184.83,184.81,0.69]
[1760755167130,2.22352618,184.83,184.79,0.17247887]
[1760755167331,2.22352618,184.83,184.81,5.41096261]
[1760755167529,2.22352618,184.83,184.82,0.69]
[1760755168253,2.22352618,184.83,184.8,5.41125541]
[1760755168453,0.6761508,184.87,184.82,0.69]
[1760755168659,2.22352618,184.83,184.82,0.69]
[1760755174369,2.22352618,184.83,184.75,0.86247887]
[1760755174550,2.22352618,184.76,184.75,0.69]
[1760755174870,2.22352618,184.76,184.75,6.10263856]
[1760755175049,2.22352618,184.78,184.75,6.10263856]
[1760755175247,2.22352618,184.78,184.76,0.69]
[1760755175544,1.41972422,184.79,184.77,0.69]
[1760755176459,1.41972422,184.79,184.75,0.17283563]
[1760755176460,1.41972422,184.79,184.75,6.1027048]
[1760755176663,1.41972422,184.77,184.72,0.17283563]
[1760755176861,1.41972422,184.75,184.73,0.69]
[1760755177052,1.41972422,184.73,184.69,6.10447831]
[1760755177265,1.41972422,184.71,184.7,0.69]
[1760755177750,1.41972422,184.71,184.68,6.11474601]
[1760755177947,1.41972422,184.7,184.69,0.7]
[1760755180665,1.41972422,184.7,184.69,6.11447831]
[1760755181167,1.41972422,184.71,184.69,6.11447831]
[1760755181665,22.88,184.74,184.69,6.11447831]
[1760755181666,1.41972422,184.7,184.69,6.11447831]
[1760755181871,1.41972422,184.7,184.69,0.7]
[1760755182668,1.41972422,184.71,184.69,0.7]
[1760755182870,1.41972422,184.71,184.7,0.7]
[1760755183872,22.88,184.74,184.7,0.7]
[1760755183873,1.41972422,184.73,184.7,6.11394539]
[1760755184173,1.41972422,184.73,184.71,0.7]
[1760755184374,1.41972422,184.73,184.72,0.7]
[1760755185053,1.41972422,184.73,184.7,56.21394539]
[1760755185260,1.41972422,184.77,184.71,0.7]
[1760755185467,1.41972422,184.72,184.71,0.7]
[1760755189256,1.41972422,184.72,184.71,6.11389204]
[1760755189455,1.41972422,184.73,184.71,6.11389204]
[1760755189656,1.41972422,184.73,184.72,0.7]
[1760755190653,1.41972422,184.73,184.72,6.11359896]
[1760755191579,1.41972422,184.73,184.72,0.7]
[1760755193480,0.67644353,184.79,184.72,6.28671328]
[1760755193776,1.41972422,184.75,184.73,0.7]
[1760755194164,1.41972422,184.76,184.74,0.1730047]
[1760755194675,1.41972422,184.76,184.75,0.7]
[1760755195379,1.41972422,184.76,184.75,6.11271989]
[1760755196576,1.41972422,184.76,184.73,56.21303994]
[1760755196782,1.41972422,184.74,184.69,6.11438344]
[1760755196965,1.41972422,184.71,184.7,0.7]
[1760755198577,1.41972422,184.71,184.7,6.11418516]
[1760755200686,1.41972422,184.71,184.7,0.7]
[1760755201187,22.88,184.8,184.7,19.64964807]
[1760755201492,1.41972422,184.74,184.71,0.8729689]
[1760755202487,1.41972422,184.74,184.72,5.41359896]
[1760755202790,1.41972422,184.74,184.73,0.7]
[1760755204283,1.41972422,184.75,184.73,0.7]
[1760755204486,1.41972422,184.74,184.73,0.7]
[1760755204683,1.41972422,184.74,184.73,6.1133059]
[1760755206992,1.41972422,184.74,184.71,51.52]
[1760755207199,1.41972422,184.72,184.71,56.21375822]
[1760755207775,1.41972422,184.72,184.71,56.89375822]
[1760755207974,1.41972422,184.73,184.71,56.89375822]
[1760755208181,1.41972422,184.74,184.72,0.68]
[1760755208386,1.41972422,184.74,184.72,51.48]
[1760755208704,22.88,184.81,184.73,0.85307796]
[1760755208906,1.41972422,184.76,184.74,0.68]
[1760755209079,1.41972422,184.76,184.74,51.48]
[1760755209278,1.41972422,184.77,184.75,0.68]
[1760755209507,1.41972422,184.77,184.76,0.68]
[1760755215190,1.41972422,184.77,184.74,50.8]
[1760755215191,1.41972422,184.77,184.74,56.21296478]
[1760755215406,1.41972422,184.75,184.74,56.89296478]
[1760755217612,1.41972422,184.75,184.72,50.8]
[1760755217897,1.41972422,184.73,184.68,5.58771495]
[1760755218102,1.41972422,184.72,184.69,0.68]
[1760755218278,1.41972422,184.73,184.7,0.17328456]
[1760755218479,1.41972422,184.73,184.71,0.68]
[1760755218699,1.41972422,184.73,184.71,6.0938122]
[1760755218896,1.41972422,184.73,184.72,0.68]
[1760755224412,1.41972422,184.73,184.7,5.41414378]
[1760755224611,1.41972422,184.71,184.69,56.21446632]
[1760755224822,1.41972422,184.71,184.69,56.89446632]
[1760755225509,1.41972422,184.71,184.7,6.09418516]
[1760755225719,1.41972422,184.72,184.7,6.09418516]
[1760755225908,1.41972422,184.72,184.71,0.68]
[1760755227415,1.41972422,184.72,184.71,6.09389204]
[1760755227715,1.41972422,184.72,184.7,50.8]
[1760755227902,1.41972422,184.71,184.7,56.21411739]
[1760755228922,1.41972422,184.71,184.7,50.8]
[1760755229213,1.41972422,184.71,184.67,56.21477935]
[1760755229403,1.41972422,184.68,184.67,56.89477935]
[1760755229605,1.41972422,184.68,184.67,6.09477935]
[1760755230598,29.23541363,184.77,184.67,19.80595499]
[1760755230798,1.41972422,184.7,184.68,0.68]
[1760755231006,1.41972422,184.7,184.68,51.48]
[1760755231198,1.41972422,184.7,184.69,0.68]
[1760755231398,1.41972422,184.71,184.69,0.68]
[1760755231600,1.41972422,184.71,184.7,0.68]
[1760755232601,1.41972422,184.71,184.68,56.89473717]
[1760755232820,1.41972422,184.7,184.69,0.68]
[1760755233328,1.41972422,184.7,184.68,56.21473717]
[1760755233512,1.41972422,184.69,184.68,56.89473717]
[1760755233824,24.29972422,184.69,184.62,0.68]
[1760755234124,1.41972422,184.63,184.62,0.68]
[1760755235702,1.41972422,184.63,184.62,6.09653125]
[1760755235907,1.41972422,184.64,184.62,6.09653125]
[1760755236125,1.41972422,184.64,184.63,0.68]
[1760755237338,23.55684643,184.68,184.63,0.68]
[1760755237526,2.22195223,184.65,184.62,5.41653125]
[1760755237717,2.22195223,184.65,184.62,18.95785938]
[1760755238209,2.22195223,184.64,184.63,0.66]
[1760755238617,2.22195223,184.65,184.63,0.66]
[1760755238927,0.6767365,184.71,184.64,6.07594454]
[1760755239304,23.55662661,184.74,184.65,0.66]
[1760755239498,0.67662661,184.74,184.65,51.46]
[1760755239728,0.96083989,184.77,184.66,0.66]
[1760755239929,2.22195223,184.68,184.66,51.46]
[1760755240229,2.22195223,184.67,184.66,50.8]
[1760755241306,2.22195223,184.67,184.64,6.07594454]
[1760755241524,2.22195223,184.65,184.64,6.07594454]
[1760755244517,2.22195223,184.66,184.64,6.07594454]
[1760755244717,2.22195223,184.66,184.65,0.66]
[1760755246008,2.22195223,184.66,184.64,0.66]
[1760755246733,2.22195223,184.66,184.65,0.66]
[1760755250308,2.22195223,184.67,184.64,5.58954737]
[1760755250637,0.67666323,184.73,184.65,0.66]
[1760755250638,2.22195223,184.66,184.65,0.66]
[1760755250821,2.22195223,184.66,184.64,5.41590564]
[1760755251027,2.22195223,184.66,184.65,0.66]
[1760755251830,2.22195223,184.67,184.65,0.66]
[1760755252034,2.22195223,184.68,184.65,0.66]
[1760755252214,22.88,184.73,184.65,0.66]
[1760755252215,2.22195223,184.7,184.67,5.41506471]
[1760755252420,2.22195223,184.7,184.68,0.66]
[1760755252620,2.22195223,184.7,184.69,0.66]
[1760755253532,2.22195223,184.7,184.69,6.07447831]
[1760755253733,2.22195223,184.7,184.67,56.21488199]
[1760755253927,2.22195223,184.68,184.67,56.21488199]
[1760755254130,2.22195223,184.68,184.67,50.8]
[1760755255214,2.22195223,184.68,184.67,51.46]
[1760755255528,2.22195223,184.68,184.67,50.8]
[1760755256108,2.22195223,184.68,184.66,6.07533434]
[1760755256308,2.22195223,184.67,184.66,6.07533434]
[1760755258330,2.22195223,184.68,184.66,6.07533434]
[1760755258629,2.22195223,184.69,184.67,0.66]
[1760755258821,2.22195223,184.69,184.68,0.66]
[1760755260019,2.22195223,184.69,184.68,6.07477149]
[1760755261310,2.22195223,184.69,184.68,0.66]
[1760755261721,2.22195223,184.69,184.64,5.58920638]
[1760755261921,2.22195223,184.65,184.64,6.07566993]
[1760755262217,0.67666323,184.73,184.64,19.61553128]
[1760755262545,2.22195223,184.66,184.65,0.66]
[1760755263037,2.22195223,184.67,184.65,0.66]
[1760755263232,2.22195223,184.67,184.66,0.66]
[1760755264531,2.22195223,184.67,184.66,6.07535795]
[1760755265238,23.55658998,184.75,184.66,19.7873438]
[1760755265422,2.22195223,184.71,184.67,0.71]
[1760755265753,2.22195223,184.68,184.65,5.41558761]
[1760755266037,23.55658998,184.75,184.65,5.41558761]
[1760755266038,2.22195223,184.66,184.65,5.41558761]
[1760755266222,2.22195223,184.66,184.65,6.12558761]
[1760755266620,2.22195223,184.66,184.65,5.41558761]
[1760755266941,2.22195223,184.66,184.64,5.41591947]
[1760755267120,2.22195223,184.66,184.64,0.71]
[1760755267517,2.22195223,184.65,184.62,5.41653125]
[1760755267717,0.67666323,184.73,184.62,5.41653125]
[1760755267718,2.22195223,184.63,184.62,6.12653125]
[1760755269038,2.22195223,184.63,184.61,5.4168024]
[1760755269241,2.22195223,184.62,184.61,6.0968024]
[1760755270141,2.22195223,184.62,184.58,0.88]
[1760755270322,2.22195223,184.59,184.58,6.29770404]
[1760755270653,2.22195223,184.59,184.58,0.88]
[1760755271427,2.22195223,184.59,184.58,6.29770506]
[1760755272849,2.22195223,184.59,184.58,0.88]
[1760755273062,23.55699306,184.64,184.58,0.2]
[1760755273356,2.22195223,184.59,184.58,0.2]
[1760755275826,4.44390446,184.59,184.58,0.2]
[1760755276146,22.88,184.56,184.52,0.2]
[1760755276333,2.22195223,184.53,184.52,0.88]
[1760755276940,2.22195223,184.53,184.52,0.2]
[1760755283050,25.10195223,184.53,184.52,0.2]
[1760755283234,32.74307749,184.53,184.51,0.2]
[1760755283443,22.88,184.49,184.46,0.1]
[1760755283759,2.22195223,184.47,184.46,0.1]
[1760755283955,25.10195223,184.47,184.46,0.1]
[1760755284265,0.67758022,184.48,184.46,0.1]
[1760755284560,2.22195223,184.47,184.46,0.1]
[1760755284931,2.22195223,184.47,184.46,0.78]
[1760755285360,2.22195223,184.47,184.46,0.1]
[1760755289366,2.22195223,184.47,184.46,0.78]
[1760755292740,0.67739662,184.53,184.46,6.20122953]
[1760755292939,2.22195223,184.48,184.47,0.68]
[1760755293933,2.22195223,184.49,184.47,0.68]
[1760755294133,2.22195223,184.49,184.48,0.68]
[1760755295669,2.22195223,184.5,184.49,5.42034798]
[1760755295863,2.22195223,184.5,184.49,6.10034798]
[1760755296665,2.22195223,184.5,184.49,0.68]
[1760755299242,2.22195223,184.5,184.48,5.42064148]
[1760755299546,1.42430678,184.49,184.48,0.7]
[1760755300563,0.67739662,184.53,184.48,0.7]
[1760755300752,0.67739662,184.53,184.49,0.7]
[1760755300958,1.42430678,184.5,184.49,0.7]
[1760755307674,1.42430678,184.5,184.47,6.12092493]
[1760755307872,1.42430678,184.48,184.47,5.42092493]
[1760755308367,1.42430678,184.48,184.47,6.12092493]
[1760755309879,1.42430678,184.48,184.47,6.12093565]
[1760755310860,0.67747005,184.51,184.47,6.12093565]
[1760755311173,1.42430678,184.48,184.47,6.12093565]
[1760755311369,0.67735992,184.54,184.47,6.12093565]
[1760755311574,0.67735992,184.54,184.47,5.42093565]
[1760755311871,1.42430678,184.48,184.47,5.42093565]
[1760755312074,1.42430678,184.48,184.47,6.12093565]
[1760755315179,1.42430678,184.48,184.47,0.7]
[1760755315677,23.55739662,184.53,184.47,0.7]
[1760755315879,1.42430678,184.5,184.47,51.5]
[1760755316172,1.42430678,184.48,184.46,5.52114313]
[1760755316376,1.42430678,184.47,184.46,5.52114313]
[1760755316565,1.42430678,184.47,184.46,6.22114313]
[1760755317068,1.42430678,184.47,184.46,0.8]
[1760755317387,1.42430678,184.47,184.46,6.22122953]
[1760755319381,1.42430678,184.48,184.46,6.22122953]
[1760755319568,1.42430678,184.48,184.47,0.7]
[1760755320563,1.42430678,184.48,184.47,6.12093565]
[1760755323585,1.42430678,184.48,184.47,0.7]
[1760755323991,1.42430678,184.48,184.47,6.12093565]
[1760755324380,1.42430678,184.48,184.47,0.7]
[1760755324673,1.42430678,184.48,184.46,0.1]
[1760755324674,22.88,184.47,184.46,0.1]
[1760755324874,22.88,184.46,184.44,0.2]
[1760755325190,1.42430678,184.45,184.44,0.2]
[1760755325986,1.42430678,184.45,184.44,0.87]
[1760755326182,0.67765369,184.46,184.44,0.87]
[1760755326378,1.42430678,184.45,184.44,5.62181739]
[1760755326992,1.42430678,184.45,184.44,6.29181739]
[1760755327492,1.42430678,184.46,184.44,6.29181739]
[1760755327688,1.42430678,184.46,184.45,0.67]
[1760755327888,1.42430678,184.47,184.45,0.67]
[1760755328198,1.42430678,184.47,184.46,0.72]
[1760755328695,1.42430678,184.48,184.46,0.72]
[1760755329185,1.42430678,184.48,184.47,5.42093565]
[1760755329383,1.42430678,184.48,184.47,6.14093565]
[1760755329904,0.67739662,184.53,184.47,19.69327478]
[1760755330086,1.42430678,184.53,184.48,0.89478398]
[1760755330287,1.42430678,184.54,184.48,0.89478398]
[1760755330599,1.42430678,184.55,184.48,0.89478398]
[1760755330792,1.42430678,184.56,184.48,1.17910712]
[1760755330997,24.30430678,184.57,184.49,0.72]
[1760755331175,24.30430678,184.57,184.51,5.41976044]
[1760755331370,22.88,184.57,184.52,0.72]
[1760755331575,0.8191913,184.63,184.52,0.72]
[1760755331576,16.2994757,184.62,184.52,0.89445826]
[1760755331793,1.42430678,184.59,184.52,0.89445826]
[1760755332302,1.42430678,184.62,184.52,1.1787814]
[1760755332489,24.98140986,184.61,184.53,0.72]
[1760755332691,24.98140986,184.61,184.54,0.17427946]
[1760755332986,24.30430678,184.61,184.55,0.72]
[1760755333187,1.42430678,184.61,184.55,0.72]
[1760755333394,1.42430678,184.62,184.56,5.41829215]
[1760755333582,1.42430678,184.59,184.55,0.72]
[1760755333778,1.42430678,184.59,184.56,0.72]
[1760755334694,1.42430678,184.6,184.57,0.72]
[1760755335287,1.42430678,184.62,184.59,5.41741156]
[1760755335595,1.42430678,184.62,184.6,0.72]
[1760755335787,1.42430678,184.62,184.55,13.72063845]
[1760755335788,1.42430678,184.62,184.58,0.72]
[1760755335988,1.42430678,184.62,184.59,0.72]
[1760755337088,1.42430678,184.63,184.6,0.72]
[1760755339714,2.10133651,184.63,184.6,0.72]
[1760755339914,1.42430678,184.63,184.6,0.72]
[1760755341613,1.42430678,184.62,184.6,0.72]
[1760755342908,0.67702973,184.63,184.56,0.72]
[1760755342909,2.10140986,184.61,184.56,0.72]
[1760755343090,1.42430678,184.58,184.56,0.72]
[1760755343410,1.42430678,184.58,184.54,0.72]
[1760755343595,1.42430678,184.58,184.55,0.72]
[1760755344105,1.42430678,184.58,184.56,0.72]
[1760755344304,1.42430678,184.58,184.53,5.59351281]
[1760755344506,1.42430678,184.58,184.54,0.72]
[1760755344704,1.42430678,184.58,184.53,5.41917303]
[1760755345014,1.42430678,184.58,184.54,0.72]
[1760755345206,1.42430678,184.57,184.53,5.41917303]
[1760755345510,1.42430678,184.57,184.55,0.72]
[1760755345712,1.42430678,184.56,184.51,5.41952699]
[1760755345902,1.42430678,184.56,184.52,0.72]
[1760755346206,1.42430678,184.56,184.53,0.72]
[1760755347409,1.42430678,184.54,184.53,0.72]
[1760755347791,1.42430678,184.54,184.51,0.72]
[1760755348106,1.42430678,184.52,184.5,5.4200542]
[1760755348615,1.42430678,184.52,184.51,0.72]
[1760755348812,1.42430678,184.53,184.51,6.13976044]
[1760755349221,1.42430678,184.52,184.51,0.72]
[1760755350117,1.42430678,184.52,184.49,5.42012365]
[1760755350314,1.42430678,184.51,184.49,6.14012365]
[1760755350517,1.42430678,184.5,184.45,29.02152344]
[1760755350698,1.42430678,184.49,184.46,0.72]
[1760755350896,1.42430678,184.49,184.46,6.1409854]
[1760755351114,1.42430678,184.49,184.47,0.72]
[1760755351819,1.42430678,184.48,184.47,0.72]
[1760755351992,1.42430678,184.48,184.47,6.14093565]
[1760755354008,1.42430678,184.49,184.47,6.14093565]
[1760755354210,1.42430678,184.49,184.48,0.72]
[1760755354403,1.42430678,184.5,184.48,0.72]
[1760755354605,1.42430678,184.5,184.49,0.72]
[1760755355297,1.42430678,184.52,184.49,0.89480649]
[1760755355496,1.42430678,184.53,184.49,0.89480649]
[1760755355693,1.42430678,184.53,184.49,51.69480649]
[1760755355912,1.42430678,184.53,184.5,0.72]
[1760755356324,1.42430678,184.53,184.51,5.41976044]
[1760755356624,1.42430678,184.53,184.52,0.72]
[1760755357450,1.42430678,184.53,184.52,6.13946672]
[1760755357800,0.67721313,184.58,184.52,6.13946672]
[1760755357801,1.42430678,184.54,184.52,6.13946672]
[1760755358118,1.42430678,184.54,184.53,0.72]
[1760755358717,1.42430678,184.54,184.53,6.13917303]
[1760755359423,1.42430678,184.54,184.53,0.72]
[1760755359722,1.42430678,184.56,184.53,6.13917303]
[1760755359920,1.42430678,184.56,184.54,0.72]
[1760755360213,1.42430678,184.56,184.55,0.72]
[1760755360919,1.42430678,184.56,184.55,6.13858574]
[1760755361310,23.55710308,184.61,184.55,6.13858574]
[1760755361512,2.2236585,184.57,184.55,6.13858574]
[1760755361824,2.2236585,184.57,184.56,0.72]
[1760755362217,2.2236585,184.58,184.56,0.72]
[1760755362520,2.2236585,184.58,184.57,0.72]
[1760755365128,2.2236585,184.59,184.57,6.13795327]
[1760755365328,2.2236585,184.59,184.58,0.72]
[1760755365510,2.2236585,184.59,184.58,51.52]
[1760755367018,2.2236585,184.6,184.58,51.52]
[1760755367331,2.2236585,184.6,184.59,0.72]
[1760755368829,22.88,184.64,184.59,56.93741156]
[1760755369010,0.67691974,184.66,184.6,0.72]
[1760755369327,2.2236585,184.61,184.6,0.72]
[1760755373930,2.2236585,184.61,184.59,56.21734794]
[1760755374235,2.2236585,184.6,184.59,50.8]
[1760755374436,2.2236585,184.6,184.57,56.93775125]
[1760755374633,2.2236585,184.58,184.57,56.93775125]
[1760755381040,2.2236585,184.58,184.57,50.8]
[1760755383638,2.2236585,184.58,184.57,51.47]
[1760755385339,2.2236585,184.58,184.57,50.8]
[1760755385842,2.2236585,184.58,184.57,51.47]
[1760755386246,2.2236585,184.58,184.57,0.67]
[1760755398444,22.88,184.57,184.51,0.65]
[1760755398642,2.2236585,184.52,184.51,0.65]
[1760755399558,2.2236585,184.52,184.49,0.65]
[1760755399731,2.2236585,184.5,184.49,0.65]
[1760755401049,2.2236585,184.5,184.47,0.65]
[1760755401251,2.2236585,184.48,184.47,0.65]
[1760755402753,2.2236585,184.48,184.45,56.221483]
[1760755402939,2.2236585,184.47,184.46,0.65]
[1760755406556,25.1036585,184.47,184.44,0.2]
[1760755406859,25.1036585,184.45,184.44,0.2]
[1760755408244,2.2236585,184.45,184.44,0.2]
[1760755411458,0.67761695,184.47,184.44,0.2]
[1760755411762,2.2236585,184.45,184.44,0.2]
[1760755412057,25.1036585,184.45,184.44,0.2]
[1760755412249,2.2236585,184.44,184.43,0.1]
[1760755412452,2.90138567,184.44,184.43,0.1]
[1760755412845,22.88,184.41,184.4,0.2]
[1760755413061,27.327317,184.41,184.4,0.2]
[1760755413557,29.50258958,184.41,184.4,0.2]
[1760755415436,29.50258958,184.41,184.4,0.85]
[1760755415437,2.17527258,184.41,184.4,0.85]
[1760755415640,2.2236585,184.43,184.4,19.83047722]
[1760755415841,2.2236585,184.44,184.41,0.65]
[1760755416544,2.2236585,184.44,184.42,5.42240537]
[1760755416758,2.2236585,184.44,184.43,0.65]
[1760755418566,2.2236585,184.44,184.43,6.07211137]
[1760755420766,22.88,184.47,184.43,6.07211137]
[1760755420975,2.2236585,184.45,184.43,6.07211137]
[1760755421151,2.2236585,184.45,184.44,0.66]
[1760755421351,1.42473587,184.45,184.44,0.66]
[1760755421871,6.37645025,184.5,184.44,0.66]
[1760755422069,1.42473587,184.45,184.44,6.08181739]
[1760755424564,16.30656339,184.5,184.44,6.08181739]
[1760755424770,1.42473587,184.46,184.45,0.66]
[1760755424979,1.42473587,184.46,184.45,51.46]
[1760755425882,1.42473587,184.46,184.45,56.88152344]
[1760755429167,29.25645025,184.5,184.45,56.88152344]
[1760755429365,1.42473587,184.46,184.43,5.42211137]
[1760755429568,1.42473587,184.46,184.43,56.22211137]
[1760755430069,1.42473587,184.46,184.44,0.66]
[1760755430462,1.42473587,184.46,184.45,5.42152344]
[1760755430673,1.42473587,184.46,184.45,6.08152344]
[1760755432165,1.42473587,184.47,184.45,6.08152344]
[1760755432373,1.42473587,184.47,184.46,0.66]
[1760755434068,0.67724982,184.57,184.46,51.63502687]
[1760755434266,1.42473587,184.53,184.47,0.66]
[1760755434470,1.42473587,184.53,184.49,5.42034798]
[1760755434658,1.42473587,184.52,184.5,0.66]
[1760755434859,1.42473587,184.52,184.51,0.66]
[1760755435255,1.42473587,184.53,184.51,0.66]
[1760755435470,1.42473587,184.53,184.52,0.66]
[1760755437472,1.42473587,184.53,184.52,6.07946672]
[1760755437690,1.42473587,184.54,184.52,6.07946672]
[1760755437879,1.42473587,184.54,184.53,0.66]
[1760755438374,1.42473587,184.55,184.53,0.66]
[1760755438562,1.42473587,184.55,184.53,6.07900221]
[1760755438763,1.42473587,184.55,184.54,0.66]
[1760755439371,1.42473587,184.56,184.54,0.66]
[1760755439566,1.42473587,184.56,184.53,5.41900221]
[1760755439782,1.42473587,184.56,184.55,0.66]
[1760755440086,1.42473587,184.56,184.54,0.66]
[1760755440272,1.42473587,184.56,184.55,0.66]
[1760755441282,1.42473587,184.56,184.51,6.07900221]